[Event "FIDE World School-ch G-13 2025"]
[Site "Vrnjacka Banja"]
[Date "2025.03.21"]
[Round "2.1"]
[White "Smirnova, Viktoria A"]
[Black "Amanzhol, Khanzada"]
[Result "0-1"]
[Annotator "TA"]
[ECO "A41"]
[WhiteElo "1671"]
[BlackElo "1908"]
[PlyCount "90"]
[EventDate "2025.03.19"]
[EventType "swiss"]
[EventCountry "SRB"]
[SourceTitle "playchess.com"]
[Source "ChessBase"]
[SourceQuality "1"]
[TimeControl "5400+30"]

{[%evp 17,90,-15,-12,-40,-31,-70,-17,-70,-76,-179,-185,-173,-165,-175,-172,-163,-135,-140,-133,-183,-169,-174,-183,-224,-208,-201,-166,-161,-160,-159,-158,-164,-145,-219,-204,-222,-208,-323,-337,-339,-341,-368,-345,-368,-356,-351,-340,-372,-356,-391,-378,-380,-376,-430,-376,-449,-428,-514,-507,-553,-553,-553,-553,-459,-475,-893,-880,-2485,-4738,-4794,-4657,-6729,-6191,-29980,-29981]} 1. d4 {[%emt 0:00:01]} d6 {[%emt 0:00:16]} 2. c4 {[%emt 0:00:12]} e5 {[%emt 0:00:18]} 3. dxe5 {[%emt 0:04:47]} dxe5 {[%emt 0:00:07]} 4. Qxd8+ {[%emt 0:02:13]} Kxd8 {[%emt 0:00:07]} 5. Nc3 {[%emt 0:01:48]} Be6 {[%emt 0:01:08]} 6. b3 {[%emt 0:10:51]} Nd7 {[%emt 0:01:19]} 7. Nf3 {[%emt 0:03:26]} f6 {[%emt 0:00:25]} 8. Bb2 {[%emt 0:06:31]} c6 {[%emt 0:00:39]} 9. O-O-O {[%emt 0:06:52]} Kc7 {[%emt 0:00:28]} 10. e4 {[%emt 0:06:02] A41: 1 d4 d6: Tartakower System and Modern Defence.} a5 $146 {[%emt 0:05:55]} (10... Nh6 11. Ne1 Ng4 12. Nd3 Nc5 13. Rd2 Rd8 14. f3 Ne3 15. Ne1 Rxd2 16. Kxd2 Nxf1+ 17. Rxf1 a6 {0-1 Alchakov,R (1900)-Dmitriev,I (2393) Belorechensk Sarkisov Memorial op 2012 (1)}) 11. h4 {[%emt 0:08:38]} h5 {[%emt 0:06:07]} (11... Nc5 $15) 12. g3 {[%emt 0:05:08]} (12. Ne1 $11) 12... Nh6 {[%emt 0:01:49]} 13. Bh3 {[%emt 0:04:12]} (13. Ne1 $17) 13... Bxh3 $19 {[%emt 0:11:03]} 14. Rxh3 {[%emt 0:00:19]} Ng4 {[%emt 0:00:35]} 15. Rd2 {[%emt 0:05:06]} Bc5 {[%emt 0:06:03]} 16. Nd1 {[%emt 0:05:06]} Bb4 {[%emt 0:12:27]} 17. Re2 {[%emt 0:02:44]} Nc5 {[%emt 0:01:19]} 18. Kc2 {[%emt 0:03:31]} (18. a3 $17 Nd3+ (18... Nxb3+ $2 19. Kc2 $18) 19. Kc2 Nxb2 20. Kxb2) 18... a4 {[%emt 0:04:36]} 19. Nh2 {[%emt 0:04:32]} Rhd8 {[%emt 0:07:37] Black has strong rooks and is better} 20. f3 {[%emt 0:04:21]} axb3+ {[%emt 0:04:08]} 21. axb3 {[%emt 0:00:18]} Nxh2 {[%emt 0:00:33]} 22. Rhxh2 {[%emt 0:00:21]} Rd3 {[%emt 0:01:05]} 23. Re3 {[%emt 0:03:24]} Rad8 {[%emt 0:00:20] Black is much more active.} 24. Rxd3 {[%emt 0:01:56]} Rxd3 {[%emt 0:05:39] Black attacks} 25. Rf2 {[%emt 0:01:59]} (25. f4 $17) 25... Rxb3 {[%emt 0:01:10]} 26. Rf1 {[%emt 0:02:45]} Rd3 {[%emt 0:01:38]} 27. Nc3 {[%emt 0:00:56]} (27. Bc1 {was worth a try.}) 27... Kc8 {[%emt 0:02:44]} 28. Nb1 {[%emt 0:01:08]} Re3 {[%emt 0:02:33]} 29. Nc3 {[%emt 0:03:44] Wards off Re2+} Bxc3 {[%emt 0:01:32]} 30. Bxc3 {[%emt 0:00:07][%mdl 4096] Endgame KRB-KRN. Black is a pawn up.} Re2+ {[%emt 0:00:21]} 31. Kd1 {[%emt 0:01:05]} Rg2 {[%emt 0:00:53]} 32. Be1 {[%emt 0:00:59]} Nd3 {[%emt 0:00:10] Prevents Bf2} 33. f4 {[%emt 0:00:22]} Nb2+ {[%emt 0:01:51]} 34. Kc1 {[%emt 0:00:16]} Nxc4 {[%emt 0:00:09]} 35. Bf2 {[%emt 0:00:51]} Nd6 {[%emt 0:06:23]} 36. fxe5 {[%emt 0:00:57]} fxe5 {[%emt 0:00:25]} (36... Nxe4 37. exf6 Nxf6 (37... Nxf2 $2 {loses.} 38. f7 $18) (37... Rxf2 38. Rxf2 gxf6 39. Rf4 $16) (37... gxf6 $2 38. Be1 $19) 38. Bd4 $19) 37. Be1 {[%emt 0:00:55]} Kd7 {[%emt 0:01:43]} 38. Bb4 {[%emt 0:00:25]} Ke6 {[%emt 0:00:34]} 39. Bxd6 {[%emt 0:00:30]} Kxd6 {[%emt 0:00:05] KR-KR. Black is two pawns up.} 40. Rf3 {[%emt 0:00:10]} b5 {[%emt 0:00:39]} 41. Rd3+ {[%emt 0:00:18]} (41. Rb3 $142) 41... Kc5 {[%emt 0:00:51]} 42. Rc3+ {[%emt 0:00:10]} Kb6 {[%emt 0:00:09]} 43. Rd3 {[%emt 0:01:00]} b4 {[%emt 0:00:26] [#] White must now prevent ...Kb5.} 44. Rb3 {[%emt 0:00:45]} c5 {[%emt 0:00:05] ( -> ...Kb5)} 45. Rf3 {[%emt 0:00:31]} c4 {[%emt 0:00:15] Weighted Error Value: White=0.67/Black=0.07 (flawless)   Mistake:       	White=6     	Black=1      Inaccurate:     	White=2     	---        OK:         	White=6     	Black=18     Best:        	White=1     	Black=2} 0-1

[Event "FIDE World School-ch G-13 2025"]
[Site "Vrnjacka Banja"]
[Date "2025.03.21"]
[Round "2.1"]
[White "Veleva, Ilijana"]
[Black "Begmuratova, Sarvinoz"]
[Result "*"]
[Annotator "NA RC"]
[ECO "A41"]
[WhiteElo "1554"]
[BlackElo "1808"]
[PlyCount "25"]
[EventDate "2025.03.19"]
[EventType "swiss"]
[EventCountry "SRB"]
[SourceTitle "playchess.com"]
[Source "ChessBase"]
[SourceQuality "1"]
[TimeControl "5400+30"]

1. d4 {[%emt 0:00:01]} d6 {[%emt 0:00:16]} 2. c4 {[%emt 0:00:12]} e5 {[%emt 0:00:18]} 3. dxe5 {[%emt 0:04:47]} dxe5 {[%emt 0:00:07]} 4. Qxd8+ {[%emt 0:02:13]} Kxd8 {[%emt 1:31:49]} 5. Nc3 {[%emt 0:01:48]} Be6 {[%emt 0:01:08]} 6. b3 {[%emt 0:10:51]} Nd7 {[%emt 0:01:19]} 7. Nf3 {[%emt 0:03:26]} f6 {[%emt 0:00:25]} 8. Bb2 {[%emt 1:11:12]} c6 {[%emt 0:00:39]} 9. O-O-O {[%emt 0:06:52]} Kc7 {[%emt 0:00:28]} 10. e4 {[%emt 0:58:49]} a5 {[%emt 0:05:55]} 11. h4 {[%emt 0:08:38]} h5 {[%emt 0:06:07]} 12. g3 {[%emt 0:05:08]} Nh6 {[%emt 0:01:49]} 13. Bh3 {[%emt 0:40:31]} *

[Event "FIDE World School-ch G-13 2025"]
[Site "Vrnjacka Banja"]
[Date "2025.03.21"]
[Round "2.2"]
[White "Xu, Luna Yuexiu"]
[Black "Lipartia, Nino"]
[Result "1/2-1/2"]
[Annotator "TA"]
[ECO "B47"]
[WhiteElo "1901"]
[BlackElo "1654"]
[PlyCount "149"]
[EventDate "2025.03.19"]
[EventType "swiss"]
[EventCountry "SRB"]
[SourceTitle "playchess.com"]
[Source "ChessBase"]
[SourceQuality "1"]
[TimeControl "5400+30"]

{[%evp 18,148,34,29,37,21,16,-6,-3,-10,39,11,12,12,11,14,32,30,21,27,18,24,37,13,11,6,10,6,13,0,5,0,44,4,0,0,0,0,31,30,30,36,161,161,148,158,167,167,167,162,185,179,203,8,16,0,0,0,0,0,0,0,0,0,0,0,0,0,0,0,0,0,0,0,0,0,0,0,0,0,0,0,0,0,0,0,0,0,0,0,0,0,0,0,0,0,0,0,0,0,0,0,0,0,0,0,0,0,0,0,0,0,0,0,0,0,0,0,0,0,0,0,0,0,0,0,0,0,0,0,0,0,0]} 1. e4 {[%emt 0:00:03]} c5 {[%emt 0:00:01]} 2. Nf3 {[%emt 0:00:34]} e6 {[%emt 0:00:07]} 3. d4 {[%emt 0:00:29]} cxd4 {[%emt 0:00:01]} 4. Nxd4 {[%emt 0:00:32]} Nc6 {[%emt 0:00:06]} 5. Nc3 {[%emt 0:00:29]} Qc7 {[%emt 0:00:40]} 6. a3 {[%emt 0:01:44]} a6 {[%emt 0:01:39]} 7. Be2 {[%emt 0:01:20]} Nf6 {[%emt 0:05:10]} 8. O-O {[%emt 0:01:43]} Nxd4 {[%emt 0:03:51]} 9. Qxd4 {[%emt 0:02:45]} Bc5 $1 {[%emt 0:01:33] 9...Bc5 is better than 9...Bd6.} 10. Qd3 {[%emt 0:02:05] A sharp opening} O-O {[%emt 0:01:24] B47: Sicilian: Taimanov: 5 Nc3 Qc7 6 f4, 6 g3 and 6 Be2.} 11. Be3 {[%emt 0:04:41]} b5 {[%emt 0:07:08]} 12. Bd4 $146 {[%emt 0:07:06]} (12. Bxc5 Qxc5 13. Bf3 Bb7 14. Rad1 Rfd8 15. Qd6 Qg5 16. Rd3 Ne8 17. Qb6 Rab8 18. Qa7 {½-½ Koop,S (2086)-Kroencke,M (2024) Berlin Spandau op 2nd 2016 (6)}) 12... Bxd4 {[%emt 0:09:04]} 13. Qxd4 {[%emt 0:00:21]} d6 {[%emt 0:01:22]} (13... Bb7 $11) 14. Rad1 {[%emt 0:02:49]} Bb7 {[%emt 0:04:30]} 15. Qxd6 {[%emt 0:08:10]} Qxd6 {[%emt 0:00:16]} 16. Rxd6 {[%emt 0:00:12]} Bxe4 {[%emt 0:06:03]} 17. Nxe4 {[%emt 0:02:16]} Nxe4 {[%emt 0:00:05]} 18. Rd4 {[%emt 0:00:31]} Nf6 {[%emt 0:01:46]} 19. Rfd1 {[%emt 0:01:21]} Rfc8 {[%emt 0:14:14]} 20. c3 {[%emt 0:01:23]} (20. Bf3 $5 e5 21. Rd6 $14) 20... Kf8 {[%emt 0:01:06]} 21. a4 {[%emt 0:05:51]} bxa4 {[%emt 0:03:24]} 22. Rxa4 {[%emt 0:00:31]} a5 {[%emt 0:02:14]} 23. Bb5 {[%emt 0:04:36]} Nd5 {[%emt 0:14:52]} 24. Rda1 {[%emt 0:01:42][%cal Oa1a3]} Rcb8 {[%emt 0:01:55]} 25. Bc6 {[%emt 0:03:56]} Ra6 {[%emt 0:01:02]} 26. Bxd5 {[%emt 0:01:09]} (26. Rxa5 $2 {too greedy.} Rxc6 27. Ra8 Rcb6 $19) 26... exd5 $11 {[%emt 0:00:01][%mdl 4096] Endgame KRR-KRR} 27. b4 {[%emt 0:01:39][%cal Bb2b4,Bb4a5,Ba5a6,Ba6a7][%mdl 32]} (27. Rxa5 Rxa5 28. Rxa5 Rxb2) 27... Rc6 {[%emt 0:01:16]} 28. bxa5 {[%emt 0:00:35]} Rxc3 {[%emt 0:00:33]} 29. a6 {[%emt 0:00:48]} Rcc8 {[%emt 0:00:45]} (29... Rc7 $14) 30. a7 $18 {[%emt 0:01:05]} Ra8 {[%emt 0:00:05] [#]} 31. Kf1 $1 {[%emt 0:00:51]} Rd8 {[%emt 0:00:46]} 32. Ke2 {[%emt 0:00:27]} Ke7 {[%emt 0:00:34]} 33. Kd3 {[%emt 0:01:18]} Rd7 {[%emt 0:03:09]} 34. Kd4 {[%emt 0:01:35]} f6 {[%emt 0:01:15]} 35. Kc5 $2 {[%emt 0:02:21]} (35. Ra5 $18) 35... d4 $1 $11 {[%emt 0:01:46][%cal Bd5d4,Bd4d3][%mdl 32] The position is equal.} 36. Kc6 {[%emt 0:06:36] [#] and Re1+ should not be overlooked} d3 {[%emt 0:04:37]} 37. Kb6 {[%emt 0:01:59]} d2 {[%emt 0:01:14]} 38. Rd1 {[%emt 0:00:11]} Kd8 {[%emt 0:01:35]} 39. Ra2 {[%emt 0:00:37]} Kc8 {[%emt 0:00:19]} 40. Rc2+ {[%emt 0:01:49]} (40. Raxd2 Rb7+ (40... Rdxa7 41. Rd8#) (40... Raxa7 41. Rxd7 Rxd7 42. Rxd7 $11) 41. Kc5 Rc7+ 42. Kb6 Rb7+ 43. Kc5 Rc7+ 44. Kd6 Raxa7 (44... Rcxa7 45. Ke6 $16)) 40... Kd8 {[%emt 0:00:10]} 41. Rcxd2 {[%emt 0:00:52]} Raxa7 {[%emt 0:00:17]} 42. Rxd7+ {[%emt 0:00:37]} Rxd7 {[%emt 0:00:01]} 43. Rxd7+ {[%emt 0:00:23]} Kxd7 {[%emt 0:00:01] K3P-K3P} 44. Kc5 {[%emt 0:01:02]} Ke6 {[%emt 0:00:08]} 45. Kd4 {[%emt 0:00:35]} Kf5 {[%emt 0:10:55]} 46. Kd5 {[%emt 0:00:24]} g5 {[%emt 0:00:00]} 47. Kd6 {[%emt 0:04:08]} h5 {[%emt 0:00:00]} 48. Kd5 {[%emt 0:01:28]} g4 {[%emt 0:00:00]} 49. g3 {[%emt 0:00:34]} Kg5 {[%emt 0:00:00]} 50. Ke4 {[%emt 0:01:41]} f5+ {[%emt 0:00:00]} 51. Ke5 {[%emt 0:00:14]} Kg6 {[%emt 0:00:00]} 52. Ke6 {[%emt 0:00:28]} (52. Kf4 $5) 52... Kg5 {[%emt 0:00:00]} 53. Kf7 {[%emt 0:00:27]} (53. Ke5 $5) 53... f4 {[%emt 0:00:00]} 54. Ke6 {[%emt 0:02:02]} h4 {[%emt 0:00:03]} 55. Ke5 {[%emt 0:00:28]} fxg3 {[%emt 0:00:21]} 56. fxg3 {[%emt 0:00:14]} hxg3 {[%emt 0:00:02]} 57. hxg3 {[%emt 0:00:17] KP-KP} Kg6 {[%emt 0:00:06]} 58. Ke6 {[%emt 0:01:35]} Kg5 {[%emt 0:00:18]} 59. Ke5 {[%emt 0:01:05]} Kg6 {[%emt 0:00:02]} 60. Kf4 {[%emt 0:00:53]} Kf6 {[%emt 0:00:01]} 61. Kxg4 {[%emt 0:01:35] KP-K. White is a pawn up.} Kg6 {[%emt 0:00:01]} 62. Kf4 $1 {[%emt 0:00:23]} Kf6 {[%emt 0:00:11]} 63. Kg4 {[%emt 0:00:40]} (63. g4 $5) 63... Kg6 {[%emt 0:00:07]} 64. Kh4 {[%emt 0:00:12]} Kh6 {[%emt 0:00:08]} 65. g4 {[%emt 0:00:17][%cal Bg3g4,Bg4g5,Bg5g6][%mdl 32]} Kg6 {[%emt 0:00:04]} 66. g5 {[%emt 0:00:39]} Kg7 {[%emt 0:00:15]} 67. Kh5 {[%emt 0:02:28]} Kh7 {[%emt 0:00:09]} 68. g6+ $1 {[%emt 0:01:04]} Kg7 {[%emt 0:00:05]} 69. Kg5 $1 {[%emt 0:00:18]} Kg8 {[%emt 0:00:09]} 70. Kh6 {[%emt 0:02:13]} Kh8 {[%emt 0:00:06]} 71. Kg5 {[%emt 0:00:28] Kf6 would kill now.} Kg7 {[%emt 0:00:09]} 72. Kf5 {[%emt 0:00:21]} (72. Kh5 $5) 72... Kg8 {[%emt 0:00:05]} 73. Kf6 {[%emt 0:00:38]} Kf8 {[%emt 0:00:01]} 74. g7+ {[%emt 0:00:50]} Kg8 {[%emt 0:00:01]} 75. Kg6 {[%emt 0:00:19] White really could win this.   Weighted Error Value: White=0.12 (very precise) /Black=0.11 (very precise)   Missed win:     	White=1     	---        Mistake:       	---       	Black=2      Inaccurate:     	White=2     	Black=2      OK:         	White=29    	Black=23     Best:        	White=6     	Black=17     Strong:       	White=4     	Black=1} 1/2-1/2

[Event "FIDE World School-ch G-13 2025"]
[Site "Vrnjacka Banja"]
[Date "2025.03.21"]
[Round "2.2"]
[White "Makanga Annabel"]
[Black "Enkhzaya, Zagas-Erdene"]
[Result "*"]
[Annotator "NA RC"]
[ECO "B47"]
[WhiteElo "1539"]
[BlackElo "1801"]
[PlyCount "36"]
[EventDate "2025.03.19"]
[EventType "swiss"]
[EventCountry "SRB"]
[SourceTitle "playchess.com"]
[Source "ChessBase"]
[SourceQuality "1"]
[TimeControl "5400+30"]

1. e4 {[%emt 0:00:03]} c5 {[%emt 0:00:01]} 2. Nf3 {[%emt 1:31:27]} e6 {[%emt 0:00:07]} 3. d4 {[%emt 0:00:29]} cxd4 {[%emt 0:00:01]} 4. Nxd4 {[%emt 0:00:32]} Nc6 {[%emt 0:00:06]} 5. Nc3 {[%emt 0:00:29]} Qc7 {[%emt 0:00:40]} 6. a3 {[%emt 0:01:44]} a6 {[%emt 0:01:39]} 7. Be2 {[%emt 1:30:09]} Nf6 {[%emt 0:05:10]} 8. O-O {[%emt 0:01:43]} Nxd4 {[%emt 0:03:51]} 9. Qxd4 {[%emt 0:02:45]} Bc5 {[%emt 1:23:25]} 10. Qd3 {[%emt 0:02:05]} O-O {[%emt 0:01:24]} 11. Be3 {[%emt 1:24:16]} b5 {[%emt 0:07:08]} 12. Bd4 {[%emt 0:07:06]} Bxd4 {[%emt 0:09:04]} 13. Qxd4 {[%emt 0:00:21]} d6 {[%emt 0:01:22]} 14. Rad1 {[%emt 0:02:49]} Bb7 {[%emt 0:04:30]} 15. Qxd6 {[%emt 0:08:10]} Qxd6 {[%emt 0:00:16]} 16. Rxd6 {[%emt 0:00:12]} Bxe4 {[%emt 0:06:03]} 17. Nxe4 {[%emt 0:02:16]} Nxe4 {[%emt 0:00:05]} 18. Rd4 {[%emt 0:00:31]} Nf6 {[%emt 0:01:46]} *

[Event "FIDE World School-ch G-13 2025"]
[Site "Vrnjacka Banja"]
[Date "2025.03.21"]
[Round "2.3"]
[White "Abylaykyzy, Bibisara"]
[Black "Omirserik, Alima"]
[Result "1/2-1/2"]
[Annotator "NA RC"]
[ECO "B32"]
[WhiteElo "1651"]
[BlackElo "1814"]
[PlyCount "134"]
[EventDate "2025.03.19"]
[EventType "swiss"]
[EventCountry "SRB"]
[SourceTitle "playchess.com"]
[Source "ChessBase"]
[SourceQuality "1"]
[TimeControl "5400+30"]

1. e4 {[%emt 0:00:03]} c5 {[%emt 0:00:44]} 2. Nf3 {[%emt 0:00:05]} Nc6 {[%emt 0:00:04]} 3. d4 {[%emt 0:00:19]} cxd4 {[%emt 0:00:06]} 4. Nxd4 {[%emt 0:00:04]} Qb6 {[%emt 0:00:03]} 5. Nb3 {[%emt 0:00:58]} e6 {[%emt 0:00:17]} 6. Be3 {[%emt 0:02:31]} Qc7 {[%emt 0:00:13]} 7. a3 {[%emt 0:02:02]} a6 {[%emt 0:01:33]} 8. Nc3 {[%emt 0:02:26]} b5 {[%emt 0:00:21]} 9. f4 {[%emt 0:02:35]} Bb7 {[%emt 0:00:37]} 10. Qd2 {[%emt 0:02:58]} d6 {[%emt 0:01:23]} 11. Be2 {[%emt 0:01:49]} Nf6 {[%emt 0:02:16]} 12. Bf3 {[%emt 0:00:22]} Be7 {[%emt 0:01:33]} 13. O-O {[%emt 0:02:53]} O-O {[%emt 0:02:54]} 14. Qf2 {[%emt 0:04:05]} Rab8 {[%emt 0:08:45]} 15. Kh1 {[%emt 0:06:23]} Nd7 {[%emt 0:08:12]} 16. g4 {[%emt 0:01:50]} Bf6 {[%emt 0:13:07]} 17. Nd1 {[%emt 0:04:00]} g6 {[%emt 0:02:53]} 18. h4 {[%emt 0:02:32]} Bg7 {[%emt 0:04:42]} 19. c3 {[%emt 0:02:20]} Ne7 {[%emt 0:03:52]} 20. Nd4 {[%emt 0:02:48]} Nc5 {[%emt 0:06:48]} 21. Qg2 {[%emt 0:01:29]} f5 {[%emt 0:06:58]} 22. exf5 {[%emt 0:05:36]} exf5 {[%emt 0:00:32]} 23. Nf2 {[%emt 0:02:24]} Bxd4 {[%emt 0:04:39]} 24. Bxd4 {[%emt 0:01:51]} Ne6 {[%emt 0:01:00]} 25. Be3 {[%emt 0:03:11]} fxg4 {[%emt 0:01:42]} 26. Nxg4 {[%emt 0:11:27]} Nf5 {[%emt 0:02:43]} 27. Bxb7 {[%emt 0:03:59]} Qxb7 {[%emt 0:02:54]} 28. Qxb7 {[%emt 0:02:34]} Rxb7 {[%emt 0:00:06]} 29. Rfe1 {[%emt 0:06:30]} h5 {[%emt 0:05:31]} 30. Nf2 {[%emt 0:01:30]} Nxh4 {[%emt 0:02:15]} 31. Nh3 {[%emt 0:01:35]} Nf5 {[%emt 0:01:13]} 32. Bf2 {[%emt 0:00:43]} Nfg7 {[%emt 0:03:10]} 33. Bg3 {[%emt 0:00:33]} Nc5 {[%emt 0:00:57]} 34. Rad1 {[%emt 0:00:39]} Nf5 {[%emt 0:03:45]} 35. Kg2 {[%emt 0:00:58]} Rbb8 {[%emt 0:01:59]} 36. Ng5 {[%emt 0:02:10]} Rfe8 {[%emt 0:01:51]} 37. Kf3 {[%emt 0:00:51]} Na4 {[%emt 0:01:26]} 38. Ne4 {[%emt 0:03:36]} Re6 {[%emt 0:01:26]} 39. b3 {[%emt 0:01:32]} Nb6 {[%emt 0:01:31]} 40. Bf2 {[%emt 0:01:17]} Nd7 {[%emt 0:00:55]} 41. Rg1 {[%emt 0:03:10]} Rbe8 {[%emt 0:00:26]} 42. Rge1 {[%emt 0:02:40]} Kg7 {[%emt 0:00:42]} 43. c4 {[%emt 0:01:49]} bxc4 {[%emt 0:00:25]} 44. bxc4 {[%emt 0:00:07]} Nf6 {[%emt 0:00:29]} 45. Nxf6 {[%emt 0:01:15]} Kxf6 {[%emt 0:00:14]} 46. Rxe6+ {[%emt 0:01:08]} Rxe6 {[%emt 0:00:16]} 47. Rd5 {[%emt 0:00:22]} Re8 {[%emt 0:02:38]} 48. c5 {[%emt 0:02:06]} dxc5 {[%emt 0:00:06]} 49. Rxc5 {[%emt 0:00:24]} Re6 {[%emt 0:00:19]} 50. Rc8 {[%emt 0:00:55]} Rd6 {[%emt 0:00:38]} 51. Bc5 {[%emt 0:00:49]} Re6 {[%emt 0:00:52]} 52. a4 {[%emt 0:01:30]} Nh4+ {[%emt 0:00:38]} 53. Kg3 {[%emt 0:00:39]} Nf5+ {[%emt 0:00:02]} 54. Kf3 {[%emt 0:00:08]} Nd6 {[%emt 0:00:47]} 55. Bd4+ {[%emt 0:01:30]} Kf7 {[%emt 0:00:39]} 56. Rc7+ {[%emt 0:00:14]} Ke8 {[%emt 0:00:21]} 57. Rc6 {[%emt 0:00:17]} Kd7 {[%emt 0:00:33]} 58. Rxa6 {[%emt 0:00:17]} Nf5 {[%emt 0:00:16]} 59. Ra7+ {[%emt 0:00:06]} Kc6 {[%emt 0:00:33]} 60. Be5 {[%emt 0:00:15]} Kb6 {[%emt 0:00:49]} 61. Ra8 {[%emt 0:00:06]} g5 {[%emt 0:00:39]} 62. Ke4 {[%emt 0:01:13]} Ne7 {[%emt 0:00:50]} 63. f5 {[%emt 0:01:08]} Nxf5 {[%emt 0:00:58]} 64. Kxf5 {[%emt 0:00:07]} Rc6 {[%emt 0:00:21]} 65. Kxg5 {[%emt 0:00:11]} Rc5 {[%emt 0:00:21]} 66. Kf4 {[%emt 0:00:05]} Rc4+ {[%emt 0:00:16]} 67. Ke3 {[%emt 0:01:04]} Kb7 {[%emt 0:00:09]} 1/2-1/2

[Event "FIDE World School-ch G-13 2025"]
[Site "Vrnjacka Banja"]
[Date "2025.03.21"]
[Round "2.3"]
[White "Rajlic, Irina"]
[Black "Xu, Luna Yuexiu"]
[Result "*"]
[Annotator "NA RC"]
[ECO "B32"]
[WhiteElo "1568"]
[BlackElo "1901"]
[PlyCount "35"]
[EventDate "2025.03.19"]
[EventType "swiss"]
[EventCountry "SRB"]
[SourceTitle "playchess.com"]
[Source "ChessBase"]
[SourceQuality "1"]
[TimeControl "5400+30"]

1. e4 {[%emt 1:31:00]} c5 {[%emt 0:00:44]} 2. Nf3 {[%emt 0:00:05]} Nc6 {[%emt 0:00:04]} 3. d4 {[%emt 0:00:19]} cxd4 {[%emt 0:00:06]} 4. Nxd4 {[%emt 0:00:04]} Qb6 {[%emt 0:00:03]} 5. Nb3 {[%emt 0:00:58]} e6 {[%emt 0:00:17]} 6. Be3 {[%emt 0:02:31]} Qc7 {[%emt 0:00:13]} 7. a3 {[%emt 0:02:02]} a6 {[%emt 0:01:33]} 8. Nc3 {[%emt 0:02:26]} b5 {[%emt 0:00:21]} 9. f4 {[%emt 0:02:35]} Bb7 {[%emt 0:00:37]} 10. Qd2 {[%emt 0:02:58]} d6 {[%emt 0:01:23]} 11. Be2 {[%emt 0:01:49]} Nf6 {[%emt 0:02:16]} 12. Bf3 {[%emt 0:00:22]} Be7 {[%emt 0:01:33]} 13. O-O {[%emt 0:02:53]} O-O {[%emt 0:02:54]} 14. Qf2 {[%emt 0:04:05]} Rab8 {[%emt 0:08:45]} 15. Kh1 {[%emt 0:06:23]} Nd7 {[%emt 0:08:12]} 16. g4 {[%emt 0:01:50]} Bf6 {[%emt 0:13:07]} 17. Nd1 {[%emt 0:04:00]} g6 {[%emt 0:02:53]} 18. h4 {[%emt 0:02:32]} *

[Event "FIDE World School-ch G-13 2025"]
[Site "Vrnjacka Banja"]
[Date "2025.03.21"]
[Round "2.4"]
[White "Amanzhol, Khanzada"]
[Black "Bratu, Agnes-Andreea"]
[Result "*"]
[Annotator "NA RC"]
[ECO "B07"]
[WhiteElo "1908"]
[BlackElo "1586"]
[PlyCount "29"]
[EventDate "2025.03.19"]
[EventType "swiss"]
[EventCountry "SRB"]
[SourceTitle "playchess.com"]
[Source "ChessBase"]
[SourceQuality "1"]
[TimeControl "5400+30"]

1. e4 {[%emt 0:00:03]} d6 {[%emt 0:00:14]} 2. d4 {[%emt 1:31:27]} Nf6 {[%emt 0:00:06]} 3. Bd3 {[%emt 0:00:07]} Nbd7 {[%emt 0:00:32]} 4. Nf3 {[%emt 0:00:27]} e5 {[%emt 0:00:16]} 5. c3 {[%emt 0:00:41]} Be7 {[%emt 1:31:52]} 6. O-O {[%emt 0:01:14]} c6 {[%emt 1:31:28]} 7. a4 {[%emt 0:02:35]} Qc7 {[%emt 0:00:31]} 8. a5 {[%emt 0:01:25]} h6 {[%emt 0:01:37]} 9. Nbd2 {[%emt 1:28:22]} g5 {[%emt 0:03:11]} 10. Re1 {[%emt 0:05:06]} Nf8 {[%emt 0:04:29]} 11. Qb3 {[%emt 0:10:26]} Ng6 {[%emt 0:04:08]} 12. Bc4 {[%emt 0:11:13]} Rh7 {[%emt 1:19:58]} 13. Nf1 {[%emt 0:03:16]} g4 {[%emt 0:03:26]} 14. N3d2 {[%emt 0:00:58]} Nf4 {[%emt 0:05:16]} 15. Ng3 {[%emt 0:08:32]} *

[Event "FIDE World School-ch G-13 2025"]
[Site "Vrnjacka Banja"]
[Date "2025.03.21"]
[Round "2.4"]
[White "Begmuratova, Sarvinoz"]
[Black "Akuratiya, A G Hansadie Aradhya"]
[Result "1-0"]
[Annotator "NA RC"]
[ECO "B07"]
[WhiteElo "1808"]
[BlackElo "1629"]
[PlyCount "75"]
[EventDate "2025.03.19"]
[EventType "swiss"]
[EventCountry "SRB"]
[SourceTitle "playchess.com"]
[Source "ChessBase"]
[SourceQuality "1"]
[TimeControl "5400+30"]

1. e4 {[%emt 0:00:03]} d6 {[%emt 0:00:14]} 2. d4 {[%emt 0:00:06]} Nf6 {[%emt 0:00:06]} 3. Bd3 {[%emt 0:00:07]} Nbd7 {[%emt 0:00:32]} 4. Nf3 {[%emt 0:00:27]} e5 {[%emt 0:00:16]} 5. c3 {[%emt 0:00:41]} Be7 {[%emt 0:00:54]} 6. O-O {[%emt 0:01:14]} c6 {[%emt 0:00:34]} 7. a4 {[%emt 0:02:35]} Qc7 {[%emt 0:00:31]} 8. a5 {[%emt 0:01:25]} h6 {[%emt 0:01:37]} 9. Nbd2 {[%emt 0:04:03]} g5 {[%emt 0:03:11]} 10. Re1 {[%emt 0:05:06]} Nf8 {[%emt 0:04:29]} 11. Qb3 {[%emt 0:10:26]} Ng6 {[%emt 0:04:08]} 12. Bc4 {[%emt 0:11:13]} Rh7 {[%emt 0:06:02]} 13. Nf1 {[%emt 0:03:16]} g4 {[%emt 0:03:26]} 14. N3d2 {[%emt 0:00:58]} Nf4 {[%emt 0:05:16]} 15. Ng3 {[%emt 0:08:32]} h5 {[%emt 0:04:17]} 16. Ne2 {[%emt 0:02:00]} Nxe2+ {[%emt 0:15:55]} 17. Rxe2 {[%emt 0:00:05]} h4 {[%emt 0:01:08]} 18. Nf1 {[%emt 0:00:23]} Nh5 {[%emt 0:03:21]} 19. g3 {[%emt 0:00:30]} f5 {[%emt 0:08:21]} 20. dxe5 {[%emt 0:06:03]} dxe5 {[%emt 0:04:14]} 21. exf5 {[%emt 0:00:55]} Bxf5 {[%emt 0:01:12]} 22. Ne3 {[%emt 0:01:14]} Bd7 {[%emt 0:00:57]} 23. Qc2 {[%emt 0:00:50]} Rg7 {[%emt 0:09:24]} 24. Nf5 {[%emt 0:00:30]} Bxf5 {[%emt 0:01:59]} 25. Qxf5 {[%emt 0:00:06]} Nf6 {[%emt 0:00:25]} 26. Rxe5 {[%emt 0:01:30]} hxg3 {[%emt 0:04:25]} 27. hxg3 {[%emt 0:04:12]} Nd7 {[%emt 0:07:01]} 28. Qh5+ {[%emt 0:00:56]} Kd8 {[%emt 0:00:10]} 29. Qh8+ {[%emt 0:00:07]} Bf8 {[%emt 0:00:35]} 30. Bg5+ {[%emt 0:00:43]} Rxg5 {[%emt 0:00:13]} 31. Rxg5 {[%emt 0:00:05]} Qd6 {[%emt 0:00:55]} 32. Qd4 {[%emt 0:01:13]} Qe7 {[%emt 0:00:57]} 33. Rd1 {[%emt 0:01:01]} Kc8 {[%emt 0:03:11]} 34. Qxg4 {[%emt 0:00:25]} Kc7 {[%emt 0:00:43]} 35. Qf4+ {[%emt 0:00:30]} Kc8 {[%emt 0:00:10]} 36. Rf5 {[%emt 0:00:52]} Qe8 {[%emt 0:01:51]} 37. Rf7 {[%emt 0:00:36]} Be7 {[%emt 0:01:06]} 38. Be6 {[%emt 0:00:19]} 1-0